fUSD/lending_fUSD_20260630
["ID","MTS","AMOUNT","RATE_DAILY","PERIOD"]
[426769763,1782801043000,-14625.2556125,9.717e-05,2]
[426769762,1782801043000,-21713.84401413,9.717e-05,2]
[426769782,1782801044000,-93.92814344,9.717e-05,2]
[426769789,1782801046000,-606.88679369,9.717e-05,2]
[426769788,1782801046000,-2500.0,9.617e-05,2]
[426769790,1782801047000,-3779.24157074,9.717e-05,2]
[426769794,1782801060000,-5375.3571708,9.717e-05,2]
[426769795,1782801073000,-5375.3571708,9.717e-05,2]
[426769796,1782801086000,-8921.59601988,9.717e-05,2]
[426769797,1782801099000,-150.0,9.425e-05,2]
[426769801,1782801153000,-3677.00721265,9.617e-05,2]
[426769802,1782801166000,-3677.00721265,9.612e-05,2]
[426769804,1782801172000,1012.82,8.779e-05,2]
[426769805,1782801183000,172.85,7.014e-05,2]
[426769806,1782801200000,329.83313894,0.00010145,7]
[426769807,1782801201000,173.26055562,9.855e-05,7]
[426769808,1782801202000,259.89083345,0.00010435,7]
[426769809,1782801212000,467.13,8.767e-05,2]
[426769810,1782801291000,500.0,8.76e-05,2]
[426769811,1782801331000,168.7,8.793e-05,2]
[426769812,1782801404000,269.99,8.757e-05,2]
[426769813,1782801460000,-345.795564,9.542e-05,2]
[426769814,1782801513000,-250.0,9.566e-05,2]
[426769815,1782801566000,-1573.37538735,9.612e-05,2]
[426769816,1782801611000,-500.0,9.613e-05,2]
[426769817,1782801665000,-1329.02,9.265e-05,2]
[426769818,1782801718000,-151.74,9.269e-05,2]
[426769821,1782801771000,-150.0,9.357e-05,2]
[426769822,1782801825000,-500.0,9.403e-05,2]
[426769823,1782801826000,153.98,8.738e-05,2]
[426769824,1782801878000,-224.05925247,9.071e-05,2]
[426769828,1782801932000,-166.67,8.998e-05,2]
[426769829,1782802015000,-150.0,0.00013699,10]
[426769830,1782802016000,-81.55342354,0.00013699,10]
[426769831,1782802119000,4976.277575,0.0002,120]
[426769837,1782802120000,-444.45852629,9.61e-05,2]
[426769833,1782802120000,-2010.94819673,9.578e-05,2]
[426769832,1782802120000,-3896.30110327,9.578e-05,2]
[426769838,1782802120000,-459.35547786,9.61e-05,2]
[426769835,1782802120000,-150.0,9.609e-05,2]
[426769836,1782802120000,-500.0,9.61e-05,2]
[426769834,1782802120000,-250.0,9.594e-05,2]
[426769839,1782802144000,-500.0,9.61e-05,2]
[426769841,1782802145000,-500.0,9.61e-05,2]
[426769840,1782802145000,-500.0,9.61e-05,2]
[426769843,1782802145000,-206.13451227,9.61e-05,2]
[426769844,1782802145000,-205.20036041,9.61e-05,2]
[426769845,1782802145000,-1653.49674805,9.61e-05,2]
[426769846,1782802145000,-2526.70447976,9.61e-05,2]
[426769842,1782802145000,-485.69074862,9.61e-05,2]
[426769847,1782802150000,-5410.386352,9.61e-05,2]
[426769849,1782802170000,-2762.07526547,9.61e-05,2]
[426769848,1782802170000,-4182.06690633,9.61e-05,2]
[426769852,1782802195000,-2000.0,9.617e-05,2]
[426769850,1782802195000,-387.0,9.529e-05,2]
[426769851,1782802195000,-468.62274839,9.61e-05,2]
[426769853,1782802195000,-443.8091319,9.619e-05,2]
[426769855,1782802195000,-521.51786948,9.62e-05,2]
[426769854,1782802195000,-500.0,9.619e-05,2]
[426769856,1782802195000,-3141.33317242,9.62e-05,2]
[426769857,1782802195000,-1010.39473224,9.62e-05,2]
[426769876,1782802231000,-317.14,9.734e-05,2]
[426769877,1782802231000,-167.19,9.734e-05,2]
[426769879,1782802231000,-675.58,9.739e-05,2]
[426769878,1782802231000,-307.02,9.735e-05,2]
[426769880,1782802231000,-306.33,9.745e-05,2]
[426769883,1782802231000,-307.02,9.759e-05,2]
[426769882,1782802231000,-306.33,9.753e-05,2]
[426769869,1782802231000,-1384.84178834,9.712e-05,2]
[426769885,1782802231000,-179.68497724,9.768e-05,2]
[426769884,1782802231000,-304.13,9.767e-05,2]
[426769886,1782802231000,-317.14,9.772e-05,2]
[426769887,1782802231000,-512.63,9.773e-05,2]
[426769881,1782802231000,-2119.12,9.75e-05,2]
[426769874,1782802231000,-999.99,9.724e-05,2]
[426769863,1782802231000,-4262.40581495,9.693e-05,2]
[426769875,1782802231000,-928.91,9.732e-05,2]
[426769872,1782802231000,-150.0,9.715e-05,2]
[426769873,1782802231000,-306.33,9.724e-05,2]
[426769868,1782802231000,-681.96216645,9.707e-05,2]
[426769871,1782802231000,-1157.37925648,9.712e-05,2]
[426769867,1782802231000,-310.30633323,9.694e-05,2]
[426769866,1782802231000,-299.99,9.693e-05,2]
[426769865,1782802231000,-8474.26,9.693e-05,2]
[426769864,1782802231000,-8360.82,9.693e-05,2]
[426769862,1782802231000,-500.0,9.678e-05,2]
[426769888,1782802231000,-304.14,9.777e-05,2]
[426769859,1782802231000,-116782.10526776,9.62e-05,2]
[426769860,1782802231000,-172.72973787,9.662e-05,2]
[426769870,1782802231000,-205.2003604,9.712e-05,2]
[426769861,1782802231000,-500.0,9.678e-05,2]
[426769902,1782802231000,-36326.74922355,9.815e-05,2]
[426769893,1782802231000,-160.0,9.784e-05,2]
[426769933,1782802231000,-304.15,0.00010019,2]
[426769905,1782802231000,-18474.09082329,9.815e-05,2]
[426769930,1782802231000,-163.88,0.0001,2]
[426769931,1782802231000,-1000.0,0.0001,2]
[426769927,1782802231000,-512.63,9.962e-05,2]
[426769926,1782802231000,-2119.12,9.961e-05,2]
[426769928,1782802231000,-506.68,9.988e-05,2]
[426769929,1782802231000,-168.697511,0.0001,2]
[426769925,1782802231000,-317.14,9.961e-05,2]
[426769924,1782802231000,-928.91,9.952e-05,2]
[426769923,1782802231000,-675.58,9.93e-05,2]
[426769922,1782802231000,-317.14,9.923e-05,2]
[426769920,1782802231000,-500.0,9.908e-05,2]
[426769917,1782802231000,-512.63,9.899e-05,2]
[426769921,1782802231000,-150.0,9.908e-05,2]
[426769932,1782802231000,-204.0,0.00010004,2]
[426769915,1782802231000,-317.14,9.885e-05,2]
[426769919,1782802231000,-304.13,9.903e-05,2]
[426769899,1782802231000,-150.0,9.811e-05,2]
[426769889,1782802231000,-306.33,9.783e-05,2]
[426769897,1782802231000,-928.91,9.805e-05,2]
[426769898,1782802231000,-317.14,9.81e-05,2]
[426769891,1782802231000,-306.33,9.783e-05,2]
[426769895,1782802231000,-214.85187071,9.787e-05,2]
[426769907,1782802231000,-675.58,9.834e-05,2]
[426769909,1782802231000,-512.63,9.836e-05,2]
[426769912,1782802231000,-506.68,9.85e-05,2]
[426769911,1782802231000,-317.14,9.847e-05,2]
[426769914,1782802231000,-928.91,9.879e-05,2]
[426769900,1782802231000,-150.0,9.815e-05,2]
[426769913,1782802231000,-2119.12,9.856e-05,2]
[426769977,1782802232000,-1721.15331183,0.000114,2]
[426769979,1782802232000,-433.0,0.00011627,2]
[426769978,1782802232000,-166.66,0.00011507,2]
[426769969,1782802232000,-3228.506,0.00011338,2]
[426769967,1782802232000,-166.66,0.00011178,2]
[426769971,1782802232000,-150.0,0.00011351,2]
[426769962,1782802232000,-166.66,0.00010959,2]
[426769966,1782802232000,-19814.81850842,0.00011099,2]
[426769968,1782802232000,-166.66,0.00011288,2]
[426769974,1782802232000,-12046.56978979,0.00011383,2]
[426769970,1782802232000,-159.571,0.00011338,2]
[426769976,1782802232000,-17901.6245803,0.000114,2]
[426769984,1782802232000,-151.74,0.00012358,2]
[426769973,1782802232000,-7768.24871863,0.00011383,2]
[426769972,1782802232000,-152.0,0.00011351,2]
[426769980,1782802232000,-500.0,0.00011644,2]
[426769983,1782802232000,-269.99,0.0001226,2]
[426769981,1782802232000,-629.32738367,0.00011966,2]
[426769982,1782802232000,-250.92755689,0.00012201,2]
[426769990,1782802232000,-917.0,0.0001281,2]
[426769989,1782802232000,-151.0,0.0001281,2]
[426769985,1782802232000,-891.0,0.00012541,2]
[426769986,1782802232000,-181.2884264,0.00012609,2]
[426769964,1782802232000,-166.66,0.00011068,2]
[426769993,1782802232000,-886.0,0.0001281,2]
[426769975,1782802232000,-166.66,0.00011397,2]
[426769961,1782802232000,-150.0,0.00010959,2]
[426769992,1782802232000,-151.0,0.0001281,2]
[426769965,1782802232000,-19622.77789216,0.00011099,2]
[426769934,1782802232000,-304.15,0.00010019,2]
[426769935,1782802232000,-306.36,0.00010019,2]
[426769939,1782802232000,-304.14,0.00010098,2]
[426769943,1782802232000,-200.0,0.00010435,2]
[426769938,1782802232000,-304.13,0.0001004,2]
[426769941,1782802232000,-500.0,0.00010182,2]
[426769940,1782802232000,-506.68,0.00010126,2]
[426769937,1782802232000,-675.58,0.00010025,2]
[426769942,1782802232000,-500.0,0.00010411,2]
[426769936,1782802232000,-928.91,0.00010025,2]
[426769945,1782802232000,-167.19,0.00010476,2]
[426769944,1782802232000,-151.0,0.00010438,2]
[426769946,1782802232000,-4000.0,0.00010496,2]
[426769953,1782802232000,-255.0,0.0001057,2]
[426769948,1782802232000,-250.0,0.00010536,2]
[426769947,1782802232000,-252.74435777,0.00010496,2]
[426769949,1782802232000,-193.0,0.00010536,2]
[426769954,1782802232000,-157.45015448,0.00010571,2]
[426769951,1782802232000,-383.41546002,0.00010536,2]
[426769955,1782802232000,-250.0,0.00010571,2]
[426769950,1782802232000,-500.0,0.00010536,2]
[426769952,1782802232000,-200.0,0.00010539,2]
[426769956,1782802232000,-300.0,0.00010582,2]
[426769958,1782802232000,-200.0,0.00010751,2]
[426769957,1782802232000,-200.0,0.00010645,2]
[426769959,1782802232000,-151.74,0.00010813,2]
[426769960,1782802232000,-200.0,0.00010859,2]
[426769963,1782802232000,-168.7,0.00010991,2]
[426769991,1782802232000,-891.0,0.0001281,2]
[426769987,1782802232000,-440.39935781,0.00012696,2]
[426769994,1782802232000,-216.62538722,0.00012811,2]
[426770025,1782802232000,-10000.0,0.00013608,2]
[426770024,1782802232000,-2711.96690489,0.00013436,2]
[426770028,1782802232000,-350.0,0.00013674,2]
[426770029,1782802232000,-2000.0,0.0001369,2]
[426770031,1782802232000,-2000.0,0.0001369,2]
[426770032,1782802232000,-2000.0,0.0001369,2]
[426770036,1782802232000,-500.0,0.00013698,2]
[426770035,1782802232000,-6375.70356283,0.00013698,2]
[426770033,1782802232000,-2000.0,0.0001369,2]
[426770030,1782802232000,-2000.0,0.0001369,2]
[426770034,1782802232000,-2000.0,0.0001369,2]
[426770038,1782802232000,-500.0,0.00013698,2]
[426770037,1782802232000,-500.0,0.00013698,2]
[426770039,1782802232000,-500.0,0.00013698,2]
[426770041,1782802232000,-500.0,0.00013698,2]
[426770040,1782802232000,-500.0,0.00013698,2]
[426770042,1782802232000,-500.0,0.00013698,2]
[426770043,1782802232000,-500.0,0.00013698,2]
[426770044,1782802232000,-151.0,0.00013698,2]
[426770045,1782802232000,-500.0,0.00013698,2]
[426770046,1782802232000,-500.0,0.00013698,2]
[426770050,1782802232000,-500.0,0.00013698,2]
[426770048,1782802232000,-500.0,0.00013698,2]
[426770047,1782802232000,-151.0,0.00013698,2]
[426770049,1782802232000,-500.0,0.00013698,2]
[426770052,1782802232000,-500.0,0.00013698,2]
[426770051,1782802232000,-500.0,0.00013698,2]
[426770021,1782802232000,-3804.91794448,0.00013421,2]
[426770023,1782802232000,-350.0,0.00013426,2]
[426769988,1782802232000,-736.0,0.0001279,2]
[426770019,1782802232000,-3944.0,0.00013299,5]
[426769995,1782802232000,-160.0,0.00012811,2]
[426770001,1782802232000,-258.91896649,0.00012875,2]
[426770000,1782802232000,-152.0,0.00012875,2]
[426770004,1782802232000,-904.0,0.00012875,2]
[426769997,1782802232000,-902.0,0.00012875,2]
[426769999,1782802232000,-914.0,0.00012875,2]
[426770002,1782802232000,-895.0,0.00012875,2]
[426769998,1782802232000,-902.0,0.00012875,2]
[426769996,1782802232000,-150.0,0.00012875,2]
[426770003,1782802232000,-151.0,0.00012875,2]
[426770005,1782802232000,-1934.718091,0.0001305,2]
[426770006,1782802232000,-10000.0,0.00013139,2]
[426770007,1782802232000,-440.53839531,0.00013158,2]
[426770027,1782802232000,-1499.92,0.00013655,2]
[426770010,1782802232000,-151.0,0.00013188,2]
[426770020,1782802232000,-350.0,0.00013383,2]
[426770026,1782802232000,-166.66,0.00013647,2]
[426770022,1782802232000,-1027.02437262,0.00013423,3]
[426770018,1782802232000,-6616.07363218,0.00013299,2]
[426770017,1782802232000,-1254.41808677,0.00013299,2]
[426770012,1782802232000,-6266.0,0.000132,5]
[426770016,1782802232000,-3703.52942017,0.00013299,2]
[426770013,1782802232000,-1052.75,0.000132,2]
[426770008,1782802232000,-19814.81850842,0.00013172,2]
[426770011,1782802232000,-168.7,0.00013189,2]
[426770009,1782802232000,-19622.77789213,0.00013187,2]
[426770015,1782802232000,-15000.0,0.00013246,2]
[426770014,1782802232000,-6111.0,0.00013227,2]
[426770053,1782802233000,-500.0,0.00013698,2]
[426770054,1782802233000,-500.0,0.00013698,2]
[426770059,1782802233000,-500.0,0.00013698,2]
[426770057,1782802233000,-500.0,0.00013698,2]
[426770055,1782802233000,-500.0,0.00013698,2]
[426770062,1782802233000,-163.4441419,0.00013698,2]
[426770058,1782802233000,-500.0,0.00013698,2]
[426770061,1782802233000,-169.00318163,0.00013698,2]
[426770056,1782802233000,-500.0,0.00013698,2]
[426770065,1782802233000,-151.0,0.00013698,2]
[426770063,1782802233000,-253.7022408,0.00013698,2]
[426770070,1782802233000,-500.0,0.00013698,2]
[426770071,1782802233000,-108.93716071,0.00013698,2]
[426770067,1782802233000,-151.0,0.00013698,2]
[426770060,1782802233000,-330.99681837,0.00013698,2]
[426770069,1782802233000,-272.86908929,0.00013698,2]
[426770066,1782802233000,-151.0,0.00013698,2]
[426770064,1782802233000,-82.8536173,0.00013698,2]
[426770068,1782802233000,-227.13091071,0.00013698,2]
[426770080,1782802237000,-500.0,0.00013698,2]
[426770079,1782802237000,-250.60422953,0.00013698,2]
[426770086,1782802237000,-500.0,0.00013698,2]
[426770089,1782802237000,-989.01532253,0.00013698,2]
[426770087,1782802237000,-581.73724219,0.00013698,2]
[426770083,1782802237000,-500.0,0.00013698,2]
[426770088,1782802237000,-500.0,0.00013698,2]
[426770085,1782802237000,-500.0,0.00013698,2]
[426770081,1782802237000,-500.0,0.00013698,2]
[426770084,1782802237000,-500.0,0.00013698,2]
[426770078,1782802237000,-249.39577047,0.00013698,2]
[426770076,1782802237000,-500.0,0.00013698,2]
[426770075,1782802237000,-391.06283929,0.00013698,2]
[426770074,1782802237000,-168.697512,0.00010101,2]
[426770073,1782802237000,-333.16,0.00010101,2]
[426770091,1782802237000,-500.0,0.00013698,2]
[426770082,1782802237000,-500.0,0.00013698,2]
[426770077,1782802237000,-500.0,0.00013698,2]
[426770090,1782802237000,-197.79324147,0.00013698,2]
[426770099,1782802237000,-500.0,0.00013698,2]
[426770093,1782802237000,-1186.808564,0.00013698,2]
[426770106,1782802237000,-151.0,0.00013698,2]
[426770112,1782802237000,-909.0,0.00013698,2]
[426770110,1782802237000,-151.0,0.00013698,2]
[426770113,1782802237000,-894.0,0.00013698,2]
[426770105,1782802237000,-500.0,0.00013698,2]
[426770108,1782802237000,-895.0,0.00013698,2]
[426770107,1782802237000,-910.0,0.00013698,2]
[426770104,1782802237000,-500.0,0.00013698,2]
[426770095,1782802237000,-1186.808564,0.00013698,2]
[426770102,1782802237000,-299.24133261,0.00013698,2]
[426770096,1782802237000,-500.0,0.00013698,2]
[426770097,1782802237000,-500.0,0.00013698,2]
[426770092,1782802237000,-500.0,0.00013698,2]
[426770100,1782802237000,-1783.96,0.00013698,2]
[426770094,1782802237000,-1186.808564,0.00013698,2]
[426770101,1782802237000,-94.5521991,0.00013698,2]
[426770098,1782802237000,-500.0,0.00013698,2]
[426770103,1782802237000,-1390.16646829,0.00013698,2]
[426770121,1782802238000,-276.011378,0.00013699,2]
[426770122,1782802238000,-276.011378,0.00013699,2]
[426770120,1782802238000,-276.011378,0.00013699,2]
[426770115,1782802238000,-200.0,0.00013699,2]
[426770118,1782802238000,-2.66271483,0.00013699,2]
[426770114,1782802238000,-151.0,0.00013698,2]
[426770116,1782802238000,-151.0,0.00013699,2]
[426770117,1782802238000,-273.34866317,0.00013699,2]
[426770123,1782802238000,-276.011378,0.00013699,2]
[426770119,1782802238000,-276.011378,0.00013699,2]
[426770126,1782802238000,-350.01,0.00013699,2]
[426770125,1782802238000,-276.011378,0.00013699,2]
[426770132,1782802238000,-1445.94764713,0.00013789,2]
[426770133,1782802238000,-3677.00721265,0.00013789,2]
[426770134,1782802238000,-2753.33969915,0.00013789,2]
[426770129,1782802238000,-501.37018223,0.0001377,2]
[426770131,1782802238000,-3662.8510419,0.00013789,2]
[426770128,1782802238000,-310.0,0.000137,2]
[426770127,1782802238000,-216.67478779,0.00013699,2]
[426770124,1782802238000,-276.011378,0.00013699,2]
[426770130,1782802238000,-500.0,0.00013788,2]
[426770169,1782802242000,-150.0,9.331e-05,2]
[426770173,1782802242000,-16939.13080178,0.00013789,2]
[426770175,1782802242000,-374.83658851,0.00013789,2]
[426770170,1782802242000,-2070.95916306,0.00013789,2]
[426770178,1782802242000,-624.04933777,0.00013789,2]
[426770174,1782802242000,-4621.1965797,0.00013789,2]
[426770176,1782802242000,-386.7941189,0.00013789,2]
[426770193,1782802245000,-1487.92498773,0.00013789,2]
[426770192,1782802245000,-602.36675551,0.00013789,2]
[426770191,1782802245000,-2324.25565261,0.00013789,2]
[426770195,1782802246000,-451.0,0.00013789,2]
[426770194,1782802246000,-5018.72935771,0.00013789,2]
[426770210,1782802309000,-345.795564,9.562e-05,2]
[426770211,1782802363000,-1445.94764713,9.592e-05,2]
[426770212,1782802376000,-3662.8510419,9.592e-05,2]
[426770213,1782802390000,-141.58391097,9.592e-05,2]
[426770215,1782802442000,-403.54447389,8.809e-05,2]
[426770216,1782802454000,-335.43404989,8.809e-05,2]
[426770218,1782802507000,-203.97754993,8.81e-05,2]
[426770219,1782802511000,-824.1647033,8.81e-05,2]
[426770220,1782802511000,-387.0,9.353e-05,2]
[426770221,1782802511000,-387.0,9.401e-05,2]
[426770224,1782802511000,-387.0,9.47e-05,2]
[426770223,1782802511000,-412.59556489,9.44e-05,2]
[426770222,1782802511000,-382.0,9.412e-05,2]
[426770226,1782802511000,-165.07674985,9.609e-05,2]
[426770229,1782802511000,-500.0,9.609e-05,2]
[426770228,1782802511000,-587.61964443,9.609e-05,2]
[426770230,1782802511000,-84.25656855,9.609e-05,2]
[426770225,1782802511000,-318.09847394,9.537e-05,2]
[426770227,1782802511000,-500.0,9.609e-05,2]
[426770237,1782802538000,-63734.72994745,9.61e-05,2]
[426770236,1782802538000,-556.93520861,9.609e-05,2]
[426770233,1782802538000,-500.0,9.609e-05,2]
[426770232,1782802538000,-415.74343145,9.609e-05,2]
[426770235,1782802538000,-500.0,9.609e-05,2]
[426770234,1782802538000,-500.0,9.609e-05,2]
[426770231,1782802538000,-160.0,8.81e-05,2]
[426770238,1782802560000,-329.0291488,9.609e-05,2]
[426770239,1782802566000,150.0,8.546e-05,2]
[426770241,1782802597000,482.09,8.682e-05,2]
[426770242,1782802600000,341.99454482,8.715e-05,2]
[426770243,1782802614000,-806.31098187,8.81e-05,2]
[426770244,1782802615000,926.47,8.682e-05,2]
[426770246,1782802622000,188.588884,8.8e-05,2]
[426770248,1782802626000,150.0,8.546e-05,2]
[426770254,1782802649000,152.12,8.595e-05,2]
[426770256,1782802667000,-910.0,8.81e-05,2]
[426770257,1782802669000,200.0,8.913e-05,7]
[426770258,1782802689000,150.0,8.546e-05,2]
[426770259,1782802736000,151.74,8.465e-05,2]
[426770260,1782802748000,384.0,8.745e-05,2]
[426770261,1782802749000,150.0,8.546e-05,2]
[426770262,1782802781000,18015.891275,8.766e-05,2]
[426770263,1782802787000,20990.17,8.458e-05,2]
[426770264,1782802794000,3127.84,8.458e-05,2]
[426770266,1782802839000,-150.0,0.00013699,10]
[426770268,1782802841000,-68.44657646,0.00013699,15]
[426770267,1782802841000,-81.55342354,0.00013699,10]
[426770269,1782802842000,-150.0,0.00013699,15]
[426770270,1782802844000,-150.0,0.00013699,15]
[426770271,1782802851000,-150.0,0.00013699,10]
[426770272,1782802861000,-150.0,0.00013699,15]
[426770273,1782802862000,-150.0,0.00013699,15]
[426770274,1782802863000,-150.0,0.00013699,15]
[426770275,1782802864000,-150.0,0.00013699,15]
[426770276,1782802865000,-150.0,0.00013699,15]
[426770277,1782802875000,343.60270924,8.326e-05,2]
[426770279,1782802911000,-150.0,0.00013699,15]
[426770280,1782802913000,-150.0,0.00013699,15]
[426770281,1782802915000,-150.0,0.00013699,15]
[426770282,1782802921000,-150.0,0.00013699,15]
[426770283,1782802922000,-150.0,0.00013699,15]
[426770284,1782802923000,-150.0,0.00013699,15]
[426770285,1782802924000,-100.0,0.00013699,15]
[426770286,1782802998000,-330.52234149,8.81e-05,2]
[426770287,1782802998000,-127.86410825,0.00013699,10]
[426770288,1782803000000,226.42851667,8.986e-05,7]
[426770289,1782803052000,-895.0,8.81e-05,2]
[426770290,1782803065000,-3501.64846981,8.81e-05,2]
[426770291,1782803094000,1852.42,8.403e-05,2]
[426770292,1782803119000,-500.0,8.81e-05,2]
[426770293,1782803171000,-199.65934594,8.81e-05,2]
[426770295,1782803211000,-127.58520711,8.81e-05,2]
[426770294,1782803211000,-250.0,8.81e-05,2]
[426770296,1782803225000,-50.00888695,8.81e-05,2]
[426770298,1782803278000,200.0,8.576e-05,2]
[426770297,1782803278000,-380.97562934,8.81e-05,2]
[426770302,1782803305000,-160.0,8.912e-05,2]
[426770299,1782803305000,-250.0,8.813e-05,2]
[426770300,1782803305000,-250.0,8.866e-05,2]
[426770304,1782803305000,-220.34822766,9.039e-05,2]
[426770301,1782803305000,-216.0,8.897e-05,2]
[426770305,1782803305000,-176.40218271,9.039e-05,2]
[426770303,1782803305000,-216.0,8.985e-05,2]
[426770306,1782803306000,-603.4600102,9.039e-05,2]
[426770309,1782803306000,-500.0,9.039e-05,2]
[426770307,1782803306000,-500.0,9.039e-05,2]
[426770308,1782803306000,-284.10391207,9.039e-05,2]
[426770310,1782803306000,-500.0,9.039e-05,2]
[426770311,1782803306000,-133.15346525,9.039e-05,2]
[426770312,1782803306000,-366.84653475,9.039e-05,2]
[426770320,1782803306000,-77.07378767,9.039e-05,2]
[426770315,1782803306000,-500.0,9.039e-05,2]
[426770314,1782803306000,-500.0,9.039e-05,2]
[426770316,1782803306000,-500.0,9.039e-05,2]
[426770317,1782803306000,-500.0,9.039e-05,2]
[426770319,1782803306000,-500.0,9.039e-05,2]
[426770318,1782803306000,-500.0,9.039e-05,2]
[426770313,1782803306000,-500.0,9.039e-05,2]
[426770321,1782803331000,-422.92621233,9.039e-05,2]
[426770322,1782803332000,-303.04182335,9.039e-05,2]
[426770323,1782803332000,-500.0,9.039e-05,2]
[426770325,1782803332000,-500.0,9.039e-05,2]
[426770324,1782803332000,-500.0,9.039e-05,2]
[426770326,1782803332000,-500.0,9.039e-05,2]
[426770327,1782803332000,-500.0,9.039e-05,2]
[426770328,1782803332000,-500.0,9.039e-05,2]
[426770332,1782803332000,-500.0,9.039e-05,2]
[426770331,1782803332000,-134.50626306,9.039e-05,2]
[426770330,1782803332000,-365.49373694,9.039e-05,2]
[426770333,1782803332000,-500.0,9.039e-05,2]
[426770334,1782803332000,-500.0,9.039e-05,2]
[426770335,1782803332000,-500.0,9.039e-05,2]
[426770329,1782803332000,-500.0,9.039e-05,2]
[426770336,1782803332000,-279.70993388,9.039e-05,2]
[426770338,1782803354000,-300.0,9.038e-05,2]
[426770337,1782803354000,-150.0,9.038e-05,2]
[426770340,1782803354000,-220.29006612,9.039e-05,2]
[426770339,1782803354000,-250.0,9.039e-05,2]
[426770352,1782803355000,-500.0,9.039e-05,2]
[426770354,1782803355000,-176.73957832,9.097e-05,2]
[426770341,1782803355000,-500.0,9.039e-05,2]
[426770342,1782803355000,-500.0,9.039e-05,2]
[426770343,1782803355000,-500.0,9.039e-05,2]
[426770345,1782803355000,-500.0,9.039e-05,2]
[426770347,1782803355000,-379.90052932,9.039e-05,2]
[426770344,1782803355000,-500.0,9.039e-05,2]
[426770348,1782803355000,-120.09947068,9.039e-05,2]
[426770350,1782803355000,-500.0,9.039e-05,2]
[426770349,1782803355000,-500.0,9.039e-05,2]
[426770351,1782803355000,-500.0,9.039e-05,2]
[426770353,1782803355000,-299.99999999,9.039e-05,2]
[426770346,1782803355000,-500.0,9.039e-05,2]
[426770355,1782803385000,-277.58874476,9.039e-05,2]
[426770360,1782803386000,-172.0,9.163e-05,2]
[426770356,1782803386000,-215.725404,9.041e-05,2]
[426770358,1782803386000,-977.60051243,9.128e-05,2]
[426770357,1782803386000,-3244.8052719,9.097e-05,2]
[426770359,1782803386000,-664.61902745,9.128e-05,2]
[426770361,1782803386000,-172.0,9.253e-05,2]
[426770368,1782803386000,-485.95154071,9.508e-05,2]
[426770364,1782803386000,-172.0,9.435e-05,2]
[426770365,1782803386000,-185.83094162,9.508e-05,2]
[426770363,1782803386000,-172.0,9.344e-05,2]
[426770366,1782803386000,-500.0,9.508e-05,2]
[426770362,1782803386000,-220.34822766,9.277e-05,2]
[426770367,1782803386000,-176.25666564,9.508e-05,2]
[426770372,1782803405000,-500.0,9.508e-05,2]
[426770369,1782803405000,-14.04845929,9.508e-05,2]
[426770370,1782803405000,-500.0,9.508e-05,2]
[426770371,1782803405000,-500.0,9.508e-05,2]
[426770373,1782803405000,-500.0,9.508e-05,2]
[426770377,1782803405000,-500.0,9.508e-05,2]
[426770378,1782803405000,-500.0,9.508e-05,2]
[426770379,1782803405000,-260.59908854,9.508e-05,2]
[426770374,1782803405000,-310.66639233,9.508e-05,2]
[426770376,1782803405000,-500.0,9.508e-05,2]
[426770375,1782803405000,-500.0,9.508e-05,2]
[426770381,1782803406000,-183.68659826,9.509e-05,2]
[426770382,1782803406000,-1485.88853781,9.509e-05,2]
[426770380,1782803406000,-239.42576884,9.508e-05,2]
[426770384,1782803422000,-2186.18261458,9.51e-05,2]
[426770383,1782803422000,-8313.81738542,9.509e-05,2]
[426770414,1782803439000,-172.0,9.616e-05,2]
[426770420,1782803439000,-150.99,9.67e-05,2]
[426770422,1782803439000,-172.0,9.707e-05,2]
[426770427,1782803439000,-301.0,9.795e-05,2]